bitfinex-derivatives/quotes_ETHF0:USTF0_20250917
["timestamp","ask_amount","ask_price","bid_price","bid_amount"]
[1758131086872,3.2078,4512.6,4511.5,0.1276]
[1758131087072,35.856,4514.1,4511.5,0.1276]
[1758131087073,3.2078,4511.6,4511.5,0.1276]
[1758131087377,3.4598,4511.6,4511.0,0.1276]
[1758131087578,3.2078,4511.1,4511.0,0.1276]
[1758131087780,3.2078,4511.1,4509.0,0.1276]
[1758131088078,3.2078,4509.2,4509.0,0.1276]
[1758131088279,3.4598,4509.2,4508.0,0.3094]
[1758131088472,3.666,4513.3,4507.2,0.437]
[1758131088473,3.2078,4508.1,4507.2,0.437]
[1758131088680,3.2078,4507.3,4507.2,0.437]
[1758131088872,3.2078,4507.3,4507.2,0.3094]
[1758131088873,3.4718,4507.3,4507.2,0.3094]
[1758131089089,7.4718,4507.3,4506.0,0.1276]
[1758131089385,3.2078,4507.0,4506.0,0.1276]
[1758131089583,3.2078,4507.5,4506.1,3.2078]
[1758131090078,3.2078,4508.2,4507.4,3.3354]
[1758131090280,3.2078,4507.8,4506.9,3.2078]
[1758131090483,3.2078,4507.5,4506.6,0.264]
[1758131090779,3.2078,4507.4,4506.8,3.2078]
[1758131090980,3.2078,4508.0,4507.0,0.3094]
[1758131091882,3.2078,4507.5,4506.9,0.3094]
[1758131092183,3.2078,4508.7,4507.3,3.2078]
[1758131092381,0.264,4508.6,4507.6,0.3094]
[1758131092578,3.2078,4508.7,4507.7,0.39913]
[1758131092781,0.264,4509.2,4508.2,0.3094]
[1758131092989,3.4718,4509.3,4508.2,0.3094]
[1758131093182,3.2078,4508.6,4507.6,3.2078]
[1758131093382,3.2078,4507.8,4506.7,3.2078]
[1758131093582,3.2078,4507.8,4506.8,0.3094]
[1758131094184,3.2078,4508.4,4507.4,0.3094]
[1758131094487,3.2078,4508.9,4508.0,0.39911]
[1758131094682,3.2078,4508.9,4508.7,0.1276]
[1758131094989,3.2078,4509.3,4508.8,0.3094]
[1758131095183,3.2078,4509.9,4509.0,0.3094]
[1758131095383,0.264,4509.8,4509.0,0.3094]
[1758131095688,0.264,4510.2,4509.0,0.3094]
[1758131096182,39.0888,4510.4,4509.1,0.3094]
[1758131096379,3.2078,4510.4,4509.1,0.3094]
[1758131096576,0.264,4510.7,4509.9,0.3094]
[1758131096782,0.264,4510.8,4509.9,0.3094]
[1758131097089,3.2078,4511.0,4509.9,0.3094]
[1758131097285,3.2078,4511.0,4510.4,3.2078]
[1758131097988,3.2078,4511.5,4510.6,0.2943]
[1758131098187,3.2078,4511.5,4510.7,0.2943]
[1758131098489,3.2078,4511.5,4510.9,0.2943]
[1758131098685,3.2078,4512.4,4511.4,0.2943]
[1758131099085,3.2078,4512.4,4511.5,0.1199]
[1758131099486,3.2078,4512.4,4511.6,0.2943]
[1758131099682,3.2078,4512.4,4511.7,0.2943]
[1758131099883,3.2078,4512.4,4511.9,0.2943]
[1758131100081,3.2078,4513.1,4511.9,0.2943]
[1758131100589,3.2078,4513.7,4512.9,0.1199]
[1758131101092,0.263,4514.3,4513.4,0.2943]
[1758131101291,3.2078,4514.9,4513.9,0.2943]
[1758131101593,0.263,4515.3,4514.3,3.2078]
[1758131101785,3.2078,4515.5,4514.4,0.2943]
[1758131101990,3.2078,4515.5,4514.6,0.2943]
[1758131102391,3.2078,4515.5,4514.8,3.2078]
[1758131102689,3.2078,4515.5,4515.2,0.2943]
[1758131102890,3.2078,4515.5,4514.5,0.263]
[1758131102891,3.2078,4516.5,4515.4,3.2078]
[1758131103092,3.2078,4516.5,4515.5,0.2943]
[1758131103291,3.4698,4516.5,4515.5,0.2943]
[1758131103493,3.2078,4516.5,4515.5,0.2943]
[1758131103794,3.2078,4516.5,4515.4,3.2078]
[1758131103795,3.2078,4515.9,4514.9,3.2078]
[1758131104086,3.2078,4515.9,4514.5,0.2943]
[1758131104087,3.5075,4515.9,4514.5,0.2943]
[1758131104294,3.2078,4515.9,4515.0,0.2943]
[1758131104486,3.5075,4516.5,4515.4,3.2078]
[1758131104796,3.2078,4516.0,4515.1,0.2943]
[1758131104989,0.1071,4517.1,4514.4,0.5563]
[1758131104990,0.2997,4515.4,4514.4,0.5563]
[1758131105182,3.2078,4515.5,4514.4,0.2943]
[1758131105388,3.2078,4515.0,4514.4,0.2943]
[1758131106388,3.2078,4515.6,4514.4,4.2943]
[1758131106591,3.2078,4515.6,4514.8,0.2943]
[1758131107483,3.2078,4515.6,4514.3,3.98824]
[1758131107484,3.2078,4516.2,4514.9,3.4698]
[1758131107695,3.2078,4516.2,4515.1,0.2896]
[1758131107896,3.2078,4516.2,4515.5,0.2896]
[1758131108092,3.2078,4516.2,4515.6,0.262]
[1758131108292,3.2078,4516.2,4515.7,0.1202]
[1758131108486,3.2078,4516.7,4515.8,0.2896]
[1758131110191,0.2965,4516.6,4515.8,0.2896]
[1758131110589,3.2078,4516.7,4515.8,0.2896]
[1758131110789,3.2078,4516.7,4516.0,0.2896]
[1758131110993,3.2078,4517.7,4516.5,0.2896]
[1758131111193,3.2078,4517.7,4516.6,0.261]
[1758131111390,0.261,4518.0,4515.9,0.0221]
[1758131111391,3.2078,4516.7,4515.9,0.0221]
[1758131111596,3.5043,4516.8,4516.0,0.261]
[1758131112100,3.2078,4516.8,4516.1,0.2896]
[1758131112798,3.2078,4516.8,4516.2,0.1202]
[1758131112991,3.2078,4516.8,4516.1,0.2896]
[1758131113596,3.2078,4516.8,4516.0,0.261]
[1758131114691,3.2078,4516.8,4516.1,0.2896]
[1758131114894,3.2078,4516.8,4516.2,0.1202]
[1758131115098,3.2078,4517.3,4516.3,0.2896]
[1758131115301,3.2078,4517.3,4516.4,0.26]
[1758131115302,0.2965,4517.2,4516.4,0.26]
[1758131116303,3.2078,4516.8,4515.9,3.2299]
[1758131116512,3.298,4516.8,4515.9,3.2299]
[1758131116819,0.2965,4516.7,4515.9,3.2299]
[1758131117315,3.5043,4516.0,4515.9,0.0221]
[1758131117612,3.2078,4516.0,4515.6,0.26]
[1758131117819,3.2078,4516.5,4515.9,0.39841]
[1758131118113,3.2078,4516.5,4516.0,0.688]
[1758131118312,3.2078,4516.5,4516.2,0.39838]
[1758131118507,3.2078,4516.5,4515.6,1.25608]
[1758131118508,3.2078,4516.5,4516.3,0.2896]
[1758131118717,0.2965,4516.4,4515.7,0.5486]
[1758131118917,0.2965,4516.4,4515.7,0.259]
[1758131119818,3.2078,4516.5,4515.7,0.5486]
[1758131120010,0.2965,4516.4,4515.7,0.259]
[1758131120209,0.259,4516.8,4515.7,0.259]
[1758131120210,3.2078,4516.0,4515.7,0.259]
[1758131120410,3.5043,4516.0,4515.7,0.259]
[1758131120611,3.2078,4516.0,4515.7,0.259]
[1758131120911,3.2078,4516.7,4515.8,0.2896]
[1758131121316,0.2965,4516.6,4515.9,0.0221]
[1758131121711,3.2078,4516.7,4515.9,0.0221]
[1758131121911,3.2078,4516.7,4516.1,0.2896]
[1758131122918,3.2078,4517.2,4516.6,0.2896]
[1758131123211,0.2965,4517.1,4516.0,0.1202]
[1758131123412,0.2965,4516.9,4515.9,0.0221]
[1758131123818,0.2965,4516.5,4515.9,0.0221]
[1758131124813,0.2965,4516.5,4515.0,39.1018]
[1758131124814,3.6114,4516.0,4515.0,39.1018]
[1758131125018,0.2965,4515.9,4515.0,3.2078]
[1758131125316,3.2078,4515.1,4514.4,3.4974]
[1758131125522,0.2965,4515.0,4514.1,0.258]
[1758131126222,3.2078,4514.6,4514.0,0.258]
[1758131126719,3.2078,4514.6,4514.0,0.3782]
[1758131127322,3.2078,4514.6,4514.0,0.258]
[1758131127519,0.2965,4514.0,4513.7,0.0178]
[1758131127722,3.2078,4514.0,4513.7,0.0178]
[1758131128319,3.2078,4514.0,4512.8,3.2078]
[1758131128617,3.2078,4513.3,4512.3,3.2078]
[1758131128826,3.2078,4513.3,4512.7,0.2896]
[1758131129017,3.2078,4513.3,4513.0,3.90205479]
[1758131129217,3.2078,4513.3,4512.5,0.1202]
[1758131129418,3.2078,4513.3,4512.3,3.4974]
[1758131129611,3.2078,4513.3,4512.3,3.2078]
[1758131130023,3.2078,4512.7,4511.7,3.4974]
[1758131130221,3.2078,4512.7,4512.0,3.90205479]
[1758131130425,3.2078,4512.7,4511.8,3.90205479]
[1758131130720,3.2078,4512.7,4510.5,0.1202]
[1758131130721,3.2078,4512.1,4511.1,3.2078]
[1758131131027,3.2078,4512.6,4511.7,0.2896]
[1758131131225,3.2078,4512.6,4511.1,3.4974]
[1758131131520,3.2078,4511.6,4511.5,0.1202]
[1758131131725,3.2078,4511.6,4508.7,0.2896]
[1758131131924,3.2078,4508.8,4508.7,0.2896]
[1758131132429,7.2078,4508.8,4508.5,0.1202]
[1758131132621,4.0,4508.7,4508.5,0.1202]
[1758131133129,4.0,4508.6,4508.0,0.1202]
[1758131133425,3.2078,4508.1,4508.0,0.1202]
[1758131133932,3.2078,4508.6,4508.0,4.14245479]
[1758131134226,3.2078,4509.1,4509.0,3.90205479]
[1758131134424,3.2078,4509.6,4509.5,0.2896]
[1758131135326,7.2078,4509.6,4509.4,0.1202]
[1758131135631,4.0,4509.5,4508.0,0.1202]
[1758131135820,3.2078,4508.1,4508.0,0.4098]
[1758131136329,3.2078,4509.3,4509.0,0.1202]
[1758131136520,3.2078,4509.3,4508.4,0.1202]
[1758131136721,3.2078,4508.7,4508.4,0.1202]
[1758131136919,3.2078,4508.7,4508.5,0.3195]
[1758131137222,3.2078,4509.7,4508.5,0.3195]
[1758131137426,3.2078,4509.1,4509.0,1.13725479]
[1758131137627,3.2078,4509.1,4509.0,0.443]
[1758131137829,3.2078,4509.1,4509.0,1.13725479]
[1758131138026,7.2078,4509.1,4509.0,0.1235]
[1758131138231,7.2078,4509.1,4508.4,0.1202]
[1758131138525,3.2078,4509.0,4508.6,0.3195]
[1758131138718,3.2078,4509.0,4508.4,0.81445479]
[1758131138719,3.2078,4509.5,4508.5,3.5273]
[1758131138922,3.2078,4509.8,4508.8,3.2078]
[1758131139125,3.2078,4509.8,4509.7,0.3195]
[1758131139531,3.2078,4509.8,4509.6,0.1235]
[1758131139734,3.2078,4509.8,4509.6,0.443]
[1758131140030,3.2078,4509.8,4509.0,0.1235]
[1758131140327,3.2078,4509.1,4509.0,0.443]
[1758131140528,3.2078,4509.6,4509.0,0.81775479]
[1758131140923,3.2078,4509.6,4509.3,0.3195]
[1758131141128,3.2078,4509.6,4509.4,0.3195]
[1758131141329,3.2078,4509.6,4509.5,0.3195]
[1758131141526,3.2078,4509.6,4509.5,1.01375479]
[1758131141729,3.2078,4509.6,4509.5,1.13395479]
[1758131142324,3.2078,4510.7,4510.2,0.1235]
[1758131142637,3.2078,4510.7,4510.3,0.3195]
[1758131142934,3.2078,4511.4,4510.9,0.3195]
[1758131143335,3.2078,4511.4,4511.3,0.4397]
[1758131143534,3.2078,4511.4,4511.3,0.3195]
[1758131143738,7.2078,4511.4,4510.8,0.1235]
[1758131143933,3.2078,4510.9,4510.8,0.443]
[1758131144536,3.2078,4511.5,4511.4,0.443]
[1758131144927,3.2078,4512.4,4512.0,0.1235]
[1758131145332,3.2078,4512.4,4512.1,0.3195]
[1758131145938,3.2078,4512.4,4512.3,0.3195]
[1758131146139,3.2078,4512.9,4512.6,0.1235]
[1758131146338,3.2078,4512.9,4512.7,0.3195]
[1758131146732,3.2078,4512.9,4512.6,0.1235]
[1758131146931,3.2078,4512.9,4512.6,0.2437]
[1758131147132,3.2078,4512.9,4512.6,0.1235]
[1758131147335,3.2078,4512.9,4512.8,0.1202]
[1758131147538,3.2078,4512.9,4512.7,0.3195]
[1758131147841,3.2078,4512.9,4512.8,0.4397]
[1758131148036,3.2078,4512.9,4512.8,0.3195]
[1758131150443,3.2078,4513.4,4513.3,0.3195]
[1758131150833,7.2078,4513.4,4513.2,0.1235]
[1758131151036,4.0,4513.3,4513.2,0.1235]
[1758131151341,4.0,4513.3,4513.2,0.443]
[1758131151540,4.0,4513.3,4512.6,0.1235]
[1758131151742,40.8,4514.5,4512.7,0.3195]
[1758131151942,3.2078,4512.8,4512.7,0.3195]
[1758131152833,3.2078,4512.8,4512.7,0.4397]
[1758131154041,0.22162,4512.7,4509.4,3.2078]
[1758131154341,3.2078,4510.9,4509.6,0.1235]
[1758131154537,3.2078,4509.7,4509.0,0.1235]
[1758131154841,3.2078,4509.1,4509.0,0.1235]
[1758131155146,3.6885114,4509.1,4509.0,0.1235]
[1758131155635,3.4728,4509.1,4509.0,0.1235]
[1758131156133,3.4728,4509.1,4509.0,0.443]
[1758131156334,3.95555544,4509.1,4509.0,0.443]
[1758131157133,3.69055544,4509.1,4509.0,0.443]
[1758131157330,3.95455544,4509.1,4509.0,0.443]
[1758131157738,3.69055544,4509.1,4509.0,0.443]
[1758131157940,3.95455544,4509.1,4509.0,0.443]
[1758131158333,3.69055544,4509.1,4509.0,0.443]
[1758131158845,3.95455544,4509.1,4509.0,0.443]
[1758131160338,7.69055544,4509.1,4508.4,0.1235]
[1758131160545,3.2078,4508.5,4508.4,0.1264]
[1758131160736,3.69055544,4508.5,4506.6,0.1264]
[1758131161038,3.2078,4507.3,4506.6,0.1264]
[1758131161239,3.95455544,4507.3,4507.2,0.04260483]
[1758131161435,7.95455544,4507.3,4507.2,0.04260483]
[1758131161832,48.75455544,4507.3,4507.2,0.04260483]
[1758131162139,44.49055544,4507.3,4507.2,0.04260483]
[1758131162336,48.75455544,4507.3,4507.2,0.04260483]
[1758131162536,44.49055544,4507.3,4507.2,0.04260483]
[1758131163143,44.75455544,4507.3,4507.2,0.04260483]
[1758131163343,48.75455544,4507.3,4507.2,0.04260483]
[1758131163938,44.49055544,4507.3,4507.2,0.04260483]
[1758131164134,44.75455544,4507.3,4507.2,0.04260483]
[1758131164333,44.49055544,4507.3,4507.2,0.04260483]
[1758131164539,84.69455544,4507.3,4507.2,0.04260483]
[1758131164747,80.43055544,4507.3,4507.2,0.04260483]
[1758131164946,80.69455544,4507.3,4507.2,0.04260483]
[1758131165443,84.43055544,4507.3,4507.2,0.04260483]
[1758131165840,84.69355544,4507.3,4507.2,0.04260483]
[1758131166332,84.69355544,4507.3,4506.0,0.1264]
[1758131166538,3.2078,4506.1,4505.4,0.4688]
[1758131166740,3.2078,4505.5,4505.4,0.4688]
[1758131166940,3.4708,4505.5,4505.4,0.4688]
[1758131168541,3.2078,4505.5,4505.4,4.4688]
[1758131168734,3.4708,4505.5,4505.4,4.4688]
[1758131168941,2.5223,4505.5,4505.4,4.4688]
[1758131169145,2.5223,4505.5,4504.2,0.1264]
[1758131169146,0.3188,4505.4,4504.2,3.5462]
[1758131169350,3.2078,4504.3,4502.0,0.1261]
[1758131169644,44.0078,4502.1,4502.0,0.4645]
[1758131169944,44.75505223,4502.1,4501.0,0.1261]
[1758131170150,3.2078,4501.3,4501.0,0.1261]
[1758131170739,3.2078,4501.3,4501.1,4.0]
[1758131170942,0.267,4501.7,4501.1,4.0]
[1758131171136,0.267,4501.7,4501.0,0.1261]
[1758131171339,3.2078,4501.1,4501.0,0.1261]
[1758131171538,3.2078,4501.1,4501.0,4.1261]
[1758131171844,3.2078,4501.6,4501.1,0.3384]
[1758131172039,3.2078,4502.1,4501.1,0.1791]
[1758131172244,3.2078,4501.6,4501.0,0.3052]
[1758131172448,3.2078,4501.6,4501.0,0.1791]
[1758131172645,3.2078,4501.6,4500.4,3.3869]
[1758131173038,3.4758,4502.1,4501.0,0.1791]
[1758131173241,3.2078,4502.1,4501.0,0.1791]
[1758131173444,0.3188,4501.9,4500.3,3.2078]
[1758131173647,3.2078,4501.5,4500.3,3.3869]
[1758131173947,3.3321,4501.0,4499.2,3.2078]
[1758131174148,3.2078,4499.3,4498.3,3.3869]
[1758131174348,0.3188,4499.2,4497.8,3.2078]
[1758131174549,0.5878,4499.2,4497.8,3.2078]
[1758131175255,0.269,4499.2,4499.1,4.02222691]
[1758131175448,0.3188,4499.2,4499.1,0.02222691]
[1758131175846,0.5878,4499.2,4499.1,0.02222691]
[1758131176446,0.269,4499.2,4497.3,3.2078]
[1758131176645,3.2078,4498.2,4497.1,0.1791]
[1758131176852,3.2078,4497.7,4496.7,3.2078]
[1758131177047,0.269,4497.6,4496.7,3.2078]
[1758131177344,0.269,4497.6,4495.3,0.44490418]
[1758131177345,0.3188,4497.1,4496.2,3.2078]
[1758131177546,3.2078,4497.7,4496.7,3.2078]
[1758131177752,0.1243,4501.0,4497.2,3.4091]
[1758131177753,0.269,4498.1,4497.2,3.4091]
[1758131177950,0.269,4498.3,4497.2,3.4091]
[1758131178250,3.2078,4498.5,4497.8,0.2013]
[1758131178448,0.3188,4499.4,4497.8,0.2013]
[1758131178449,3.2078,4499.1,4497.8,0.2013]
[1758131178746,3.2078,4499.1,4498.3,3.4091]
[1758131178951,0.3188,4499.0,4498.2,3.2078]
[1758131179248,3.2078,4498.4,4497.6,3.4091]
[1758131179648,0.1243,4498.9,4497.8,0.2013]
[1758131179649,3.2078,4498.9,4497.8,0.2013]
[1758131179948,0.269,4499.2,4498.4,3.2078]
[1758131180153,0.269,4499.3,4498.4,3.2078]
[1758131180344,3.2078,4498.8,4497.6,3.4091]
[1758131180544,0.3188,4498.7,4497.6,3.2078]
[1758131180753,3.2078,4498.8,4497.7,0.2013]
[1758131181054,3.5266,4499.4,4498.3,3.2078]
[1758131181358,0.269,4499.3,4498.4,0.2013]
[1758131181649,3.4768,4499.4,4498.4,0.2013]
[1758131182053,0.3188,4498.6,4496.9,3.4091]
[1758131182246,3.2078,4497.9,4496.9,0.2013]
[1758131182448,3.2078,4497.9,4497.0,0.269]
[1758131182650,3.5266,4498.8,4497.7,0.2013]
[1758131182949,3.2078,4498.8,4497.9,0.2013]
[1758131183149,0.269,4499.1,4498.4,3.2078]
[1758131183455,3.2078,4499.4,4498.5,0.2013]
[1758131183657,0.269,4499.3,4498.5,0.2013]
[1758131183858,3.4768,4499.4,4498.5,0.2013]
[1758131184052,3.7956,4499.4,4498.4,3.2078]
[1758131184256,0.3188,4498.8,4497.9,0.2013]
[1758131184452,3.5266,4498.1,4497.1,3.2078]
[1758131184655,3.2078,4498.1,4497.1,3.2078]
[1758131184849,3.4768,4498.1,4497.2,0.2013]
[1758131185044,3.2078,4498.1,4497.2,0.2013]
[1758131185447,3.2078,4499.0,4497.8,0.2013]
[1758131185651,3.4768,4499.0,4497.9,0.4]
[1758131185852,3.2078,4499.0,4497.8,0.2013]
[1758131186046,3.2078,4499.0,4497.8,0.60131]
[1758131186248,3.2078,4498.4,4497.7,3.2078]
[1758131186555,3.2078,4497.9,4497.0,0.2013]
[1758131187561,3.5266,4497.9,4496.9,3.2078]
[1758131188661,3.2078,4497.9,4497.6,0.2013]
[1758131188961,3.2078,4497.9,4497.1,0.2013]
[1758131189154,3.2078,4497.9,4497.5,0.2013]
[1758131189559,3.2078,4498.4,4498.2,0.39998]
[1758131189763,3.2078,4499.0,4498.2,0.268]
[1758131189954,3.2078,4499.0,4498.7,0.39993]
[1758131190155,3.5266,4499.0,4498.8,0.39992]
[1758131190359,3.5266,4499.5,4499.1,0.39989]
[1758131190565,3.5266,4499.5,4498.0,0.99998]
[1758131190566,0.3188,4499.9,4499.7,0.39984]
[1758131190858,0.3188,4500.4,4500.1,0.3998]
[1758131191057,0.3188,4500.4,4500.2,0.3998]
[1758131191253,3.2078,4500.7,4500.4,0.39978]
[1758131191457,3.2078,4500.7,4500.3,0.39979]
[1758131191663,3.2078,4500.7,4500.6,0.39976]
[1758131192156,3.2078,4501.4,4501.0,0.39973]
[1758131192359,3.5266,4501.9,4501.0,3.80883]
[1758131192558,0.3188,4502.9,4502.5,0.39959]
[1758131192859,0.3188,4502.9,4502.0,0.268]
[1758131193058,3.2078,4502.3,4502.0,0.268]
[1758131193458,3.2078,4502.8,4502.5,0.39959]
[1758131193660,0.3188,4503.3,4503.0,0.39955]
[1758131193863,0.3188,4503.3,4503.1,0.39953]
[1758131194162,3.2078,4503.5,4503.3,0.39952]
[1758131194460,0.1243,4504.5,4504.4,0.39943]
[1758131194661,0.1243,4504.5,4504.4,0.66643]
[1758131194866,0.1243,4505.4,4505.2,0.39935]
[1758131195057,0.1243,4505.4,4505.3,0.268]
[1758131195271,0.1243,4505.4,4505.3,4.0]
[1758131195557,0.1243,4505.4,4505.3,4.39935]
[1758131196155,0.1243,4505.4,4505.2,3.2078]
[1758131196464,0.3188,4505.0,4504.8,0.267]
[1758131196761,0.3188,4505.3,4504.8,0.267]
[1758131197465,0.4042,4505.3,4505.2,3.60716]
[1758131197766,0.4042,4505.3,4505.2,3.2078]
[1758131198658,0.4042,4505.3,4505.2,7.2078]
[1758131199257,0.4042,4505.3,4505.2,3.2078]
[1758131199456,0.4042,4505.3,4505.2,3.4738]
[1758131200058,0.4042,4505.3,4505.2,3.2078]
[1758131200256,0.4042,4505.3,4505.2,3.4738]
[1758131200664,1.40281,4504.3,4502.5,0.3814]
[1758131200862,0.4042,4503.4,4502.2,3.2078]
[1758131201164,3.2078,4502.5,4501.6,3.23]
[1758131201366,0.4042,4502.5,4501.6,0.0222]
[1758131201555,0.4042,4502.5,4501.6,0.4036]
[1758131201761,0.4042,4503.3,4502.1,0.3814]
[1758131201964,3.2078,4503.4,4502.6,0.39958]
[1758131202164,3.2078,4503.4,4502.7,0.6504]
[1758131202370,3.612,4503.4,4502.8,0.269]
[1758131202668,3.612,4503.4,4502.7,0.269]
[1758131203061,3.612,4503.4,4502.7,0.66857]
[1758131203062,3.2078,4503.4,4502.7,0.66857]
[1758131203262,3.2078,4503.9,4503.1,3.2078]
[1758131203455,0.4042,4503.8,4502.7,0.269]
[1758131203660,3.612,4503.9,4502.7,0.269]
[1758131203858,3.2078,4504.4,4503.1,3.2078]
[1758131204066,3.2078,4504.4,4503.2,0.268]
[1758131204269,3.2078,4504.4,4503.3,0.39952]
[1758131204466,0.4042,4504.6,4503.2,0.268]
[1758131204467,3.2078,4504.9,4504.1,3.2078]
[1758131204659,0.4042,4505.0,4504.2,0.268]
[1758131205263,3.2078,4504.9,4504.2,0.268]
[1758131205768,3.2078,4504.9,4504.3,0.268]
[1758131206767,3.2078,4504.9,4503.6,3.2078]
[1758131206768,0.4042,4504.8,4503.6,3.2078]
[1758131206967,0.4042,4504.3,4502.9,3.2078]
[1758131207367,3.2078,4504.4,4502.9,3.2078]
[1758131207566,0.4042,4504.3,4503.0,0.39955]
[1758131207768,0.4042,4504.3,4503.2,0.78093]
[1758131208268,0.4042,4504.3,4503.2,0.3814]
[1758131208572,0.4042,4504.3,4503.3,0.267]
[1758131208767,0.4042,4504.3,4503.4,0.3814]
[1758131208970,0.4042,4505.0,4504.1,3.2078]
[1758131209162,3.2078,4505.5,4504.6,3.6072]
[1758131209366,3.2078,4505.5,4504.7,0.6664]
[1758131209665,0.4042,4505.7,4504.7,0.267]
[1758131209870,3.2078,4506.0,4505.3,3.2078]
[1758131210069,3.2078,4506.0,4505.4,0.267]
[1758131210876,0.5558,4505.9,4505.4,0.267]
[1758131211173,0.1516,4505.9,4505.4,0.267]
[1758131211477,3.2078,4506.0,4505.4,0.267]
[1758131212070,3.2078,4506.6,4505.9,0.3814]
[1758131212270,3.2078,4506.6,4506.0,0.266]
[1758131212771,0.4042,4507.2,4506.1,0.3814]
[1758131213979,0.4042,4507.2,4506.1,0.78067]
[1758131214277,0.4042,4507.2,4506.7,3.5892]
[1758131214476,3.2078,4507.9,4506.8,0.6474]
[1758131214773,3.612,4507.4,4506.8,0.266]
[1758131215373,3.2078,4507.9,4506.8,0.266]
[1758131215579,3.2078,4507.9,4506.9,0.3814]
[1758131216075,0.1516,4507.8,4506.7,3.2078]
[1758131216276,3.2078,4506.9,4506.8,0.265]
[1758131216578,3.612,4506.9,4506.8,0.265]
[1758131216778,0.4042,4506.9,4506.8,0.265]
[1758131217880,7.2078,4506.9,4506.0,0.265]
[1758131218077,0.4059,4506.8,4506.0,0.265]
[1758131219572,0.4059,4506.8,4506.1,0.0221]
[1758131220380,0.4059,4506.8,4506.2,0.264]
[1758131220781,0.1528,4506.5,4506.2,0.264]
[1758131220973,0.4059,4506.2,4506.1,0.0221]
[1758131221978,3.2078,4506.8,4506.2,0.3944]
[1758131222171,3.2078,4506.8,4506.2,3.6022]
[1758131222780,3.2078,4507.3,4506.3,0.3944]
[1758131222979,0.4059,4507.2,4506.3,0.3944]
[1758131223375,3.2078,4507.3,4506.3,0.3944]
[1758131224880,0.4059,4507.7,4506.8,3.6022]
[1758131225070,3.2078,4507.4,4506.9,0.263]
[1758131225270,3.2078,4507.4,4507.0,0.263]
[1758131225477,0.4059,4507.3,4507.1,0.263]
[1758131225883,0.4059,4507.3,4506.9,0.0221]
[1758131226078,3.2078,4507.4,4506.9,0.0221]
[1758131226079,0.4059,4507.1,4506.9,0.0221]
[1758131226279,0.4059,4507.3,4506.9,0.0221]
[1758131226584,0.4059,4507.0,4506.9,0.0221]
[1758131226784,0.5587,4507.0,4506.9,0.0221]
[1758131227083,4.1528,4507.0,4505.7,3.2078]
[1758131227279,0.5462,4506.5,4505.5,0.262]
[1758131228182,0.3827,4505.9,4505.5,0.262]
[1758131228679,3.3713,4506.0,4505.5,0.262]
[1758131228883,3.3713,4506.0,4504.5,3.2078]
[1758131229080,0.3827,4505.4,4504.6,0.262]
[1758131229583,0.3827,4505.9,4504.7,0.3934]
[1758131231080,0.3827,4505.9,4504.8,0.0221]
[1758131231882,0.3827,4505.9,4505.1,0.3934]
[1758131232081,0.3827,4505.9,4505.2,0.261]
[1758131232384,3.3713,4506.5,4505.5,3.2078]
[1758131232685,3.3713,4506.5,4505.6,0.3934]
[1758131232987,0.49283427,4506.4,4505.7,0.261]
[1758131233286,0.3827,4507.2,4506.2,3.6012]
[1758131233489,0.3827,4507.2,4506.4,0.3934]
[1758131233983,0.3827,4507.2,4506.3,0.261]
[1758131234177,0.3827,4507.2,4506.4,0.261]
[1758131235685,0.3827,4507.2,4506.5,0.3934]
[1758131235979,0.3827,4507.8,4506.8,3.2078]
[1758131236186,0.49339481,4507.7,4506.8,3.2078]
[1758131236381,0.49339481,4507.6,4506.8,3.2078]
[1758131236582,0.3827,4507.8,4506.8,3.2078]
[1758131236782,0.49347248,4507.7,4506.8,3.2078]
[1758131236991,0.49347248,4507.6,4506.9,0.3934]
[1758131237189,0.87651836,4507.5,4507.1,0.3934]
[1758131237486,0.3827,4507.5,4507.1,0.3934]
[1758131237683,0.3827,4507.8,4507.1,0.3934]
[1758131237887,0.49379589,4507.7,4507.1,0.3934]
[1758131238092,0.49379589,4507.6,4507.0,0.26]
[1758131238389,3.5905,4507.9,4507.0,0.26]
[1758131238587,0.49411255,4507.8,4507.0,0.26]
[1758131238789,0.49411255,4507.7,4507.0,0.26]
[1758131239089,3.5905,4507.9,4507.0,0.26]
[1758131239391,0.49433403,4507.8,4507.1,0.26]
[1758131239588,3.5905,4507.9,4506.9,0.3934]
[1758131239783,0.49426444,4507.8,4507.0,0.259]
[1758131240090,3.5905,4507.9,4507.0,0.259]
[1758131240295,0.3827,4507.7,4507.0,0.259]
[1758131240691,0.3827,4507.7,4507.5,0.3934]
[1758131240984,3.2078,4508.4,4507.5,0.5506]
[1758131240985,0.3827,4508.3,4507.5,0.5506]
[1758131241284,0.3827,4508.3,4507.5,0.3934]
[1758131241588,0.3827,4508.3,4507.5,0.5506]
[1758131241791,0.3827,4508.3,4507.6,0.259]
[1758131242085,0.3827,4508.9,4508.0,0.5506]
[1758131242281,0.3827,4508.9,4508.2,0.3934]
[1758131243285,0.1635,4508.0,4507.4,0.259]
[1758131243591,3.5905,4508.0,4507.4,0.259]
[1758131243790,0.5462,4508.5,4507.5,0.3934]
[1758131244189,3.2078,4508.7,4507.8,0.3934]
[1758131244389,0.5462,4509.0,4508.3,3.2078]